[Event "Titled Tuesday Blitz December 20 Late 2022"]
[White "Tatarinov, Dmitry"]
[Black "Reprintsev, Alexander"]
[WhiteFideId "24160067"]
[BlackFideId "14100541"]
[WhiteElo "2326"]
[BlackElo "2230"]
[Result "1-0"]
[Round "03"]
[TimeControl "180+1"]
[Date "2022.12.21"]
[WhiteClock "0:01:16"]
[BlackClock "0:00:46"]

1. d4 {[%clk 0:02:44]}  d5 {[%clk 0:02:53]} 2. c4 {[%clk 0:02:43]}  e5 {[%clk 0:02:53]} 3. dxe5 {[%clk 0:02:42]}  d4 {[%clk 0:02:51]} 4. Nf3 {[%clk 0:02:42]}  Nc6 {[%clk 0:02:51]} 5. a3 {[%clk 0:02:42]}  g6 {[%clk 0:02:50]} 6. Nbd2 {[%clk 0:02:42]}  Bg7 {[%clk 0:02:49]} 7. g3 {[%clk 0:02:43]}  Nh6 {[%clk 0:02:48]} 8. Bg2 {[%clk 0:02:43]}  O-O {[%clk 0:02:47]} 9. O-O {[%clk 0:02:43]}  Re8 {[%clk 0:02:47]} 10. b4 {[%clk 0:02:42]}  a5 {[%clk 0:02:45]} 11. b5 {[%clk 0:02:40]}  Nxe5 {[%clk 0:02:45]} 12. Nxe5 {[%clk 0:02:39]}  Bxe5 {[%clk 0:02:45]} 13. Nf3 {[%clk 0:02:37]}  Bg7 {[%clk 0:02:42]} 14. Bg5 {[%clk 0:02:37]}  Qd6 {[%clk 0:02:31]} 15. Qd2 {[%clk 0:02:32]}  Nf5 {[%clk 0:02:29]} 16. Bf4 {[%clk 0:02:13]}  Qc5 {[%clk 0:02:28]} 17. a4 {[%clk 0:02:03]}  Be6 {[%clk 0:02:24]} 18. Rfc1 {[%clk 0:01:59]}  c6 {[%clk 0:02:17]} 19. Ne1 {[%clk 0:01:57]}  Rac8 {[%clk 0:01:54]} 20. Nd3 {[%clk 0:01:55]}  Qe7 {[%clk 0:01:53]} 21. bxc6 {[%clk 0:01:50]}  bxc6 {[%clk 0:01:54]} 22. Qxa5 {[%clk 0:01:49]}  Bd7 {[%clk 0:01:43]} 23. Bf3 {[%clk 0:01:41]}  h5 {[%clk 0:01:38]} 24. h4 {[%clk 0:01:38]}  c5 {[%clk 0:01:28]} 25. Qd2 {[%clk 0:01:37]}  Bc6 {[%clk 0:01:23]} 26. a5 {[%clk 0:01:37]}  Bxf3 {[%clk 0:01:22]} 27. exf3 {[%clk 0:01:38]}  Rc6 {[%clk 0:01:15]} 28. a6 {[%clk 0:01:36]}  Ra8 {[%clk 0:01:15]} 29. a7 {[%clk 0:01:36]}  Rxa7 {[%clk 0:01:13]} 30. Rxa7 {[%clk 0:01:35]}  Qxa7 {[%clk 0:01:13]} 31. Rb1 {[%clk 0:01:36]}  Rc8 {[%clk 0:01:04]} 32. Rb5 {[%clk 0:01:34]}  Bf8 {[%clk 0:01:01]} 33. Kg2 {[%clk 0:01:33]}  Nd6 {[%clk 0:01:00]} 34. Bxd6 {[%clk 0:01:33]}  Bxd6 {[%clk 0:01:00]} 35. Qe2 {[%clk 0:01:33]}  Bf8 {[%clk 0:00:59]} 36. f4 {[%clk 0:01:32]}  Qa8+ {[%clk 0:00:58]} 37. Qf3 {[%clk 0:01:32]}  Qa2 {[%clk 0:00:48]} 38. Qd5 {[%clk 0:01:18]}  Qc2 {[%clk 0:00:46]} 39. Rb7 {[%clk 0:01:16]} 1-0


[Site "https://www.chess.com"]

[Event "Titled Tuesday Blitz December 20 Late 2022"]
[White "Thomforde-Toates, Noah"]
[Black "Vega Gutierrez, Sabrina"]
[WhiteFideId "30951992"]
[BlackFideId "2219026"]
[WhiteElo "2603"]
[BlackElo "2261"]
[Result "0-1"]
[Round "03"]
[TimeControl "180+1"]
[Date "2022.12.21"]
[WhiteClock "0:00:38"]
[BlackClock "0:00:15"]

1. d4 {[%clk 0:03:00]}  d5 {[%clk 0:02:59]} 2. Nc3 {[%clk 0:02:58]}  Nf6 {[%clk 0:02:44]} 3. Bf4 {[%clk 0:02:58]}  a6 {[%clk 0:02:29]} 4. e3 {[%clk 0:02:57]}  e6 {[%clk 0:02:28]} 5. Bd3 {[%clk 0:02:53]}  c5 {[%clk 0:02:27]} 6. dxc5 {[%clk 0:02:54]}  Bxc5 {[%clk 0:02:27]} 7. Nf3 {[%clk 0:02:54]}  Nc6 {[%clk 0:02:27]} 8. O-O {[%clk 0:02:54]}  O-O {[%clk 0:02:26]} 9. e4 {[%clk 0:02:54]}  d4 {[%clk 0:02:05]} 10. Ne2 {[%clk 0:02:53]}  h6 {[%clk 0:02:04]} 11. a3 {[%clk 0:02:40]}  Re8 {[%clk 0:01:50]} 12. b4 {[%clk 0:02:24]}  Bb6 {[%clk 0:01:46]} 13. e5 {[%clk 0:02:21]}  Nd5 {[%clk 0:01:46]} 14. Bg3 {[%clk 0:02:19]}  Nc3 {[%clk 0:00:51]} 15. Qd2 {[%clk 0:02:06]}  Nxe2+ {[%clk 0:00:48]} 16. Qxe2 {[%clk 0:02:04]}  Ne7 {[%clk 0:00:47]} 17. Bh4 {[%clk 0:01:57]}  Qd5 {[%clk 0:00:30]} 18. Bxe7 {[%clk 0:01:47]}  Rxe7 {[%clk 0:00:29]} 19. Rad1 {[%clk 0:01:46]}  Bd7 {[%clk 0:00:25]} 20. c4 {[%clk 0:01:45]}  Qc6 {[%clk 0:00:21]} 21. Be4 {[%clk 0:01:41]}  Qc7 {[%clk 0:00:18]} 22. c5 {[%clk 0:01:40]}  Ba7 {[%clk 0:00:17]} 23. Nxd4 {[%clk 0:01:39]}  Ba4 {[%clk 0:00:18]} 24. Rd2 {[%clk 0:01:39]}  Rd8 {[%clk 0:00:17]} 25. Bb1 {[%clk 0:01:37]}  Red7 {[%clk 0:00:16]} 26. Qe4 {[%clk 0:01:37]}  g6 {[%clk 0:00:16]} 27. h4 {[%clk 0:01:07]}  Rd5 {[%clk 0:00:15]} 28. f4 {[%clk 0:01:02]}  Qd7 {[%clk 0:00:14]} 29. h5 {[%clk 0:00:31]}  Rxd4 {[%clk 0:00:14]} 30. Rxd4 {[%clk 0:00:31]}  Qxd4+ {[%clk 0:00:14]} 31. Qxd4 {[%clk 0:00:32]}  Rxd4 {[%clk 0:00:14]} 32. hxg6 {[%clk 0:00:33]}  Bc6 {[%clk 0:00:12]} 33. gxf7+ {[%clk 0:00:32]}  Kxf7 {[%clk 0:00:13]} 34. f5 {[%clk 0:00:32]}  Rd2 {[%clk 0:00:13]} 35. fxe6+ {[%clk 0:00:21]}  Kxe6 {[%clk 0:00:14]} 36. Bh7 {[%clk 0:00:19]}  Rxg2+ {[%clk 0:00:12]} 37. Kh1 {[%clk 0:00:20]}  Rg7+ {[%clk 0:00:09]} 38. Kh2 {[%clk 0:00:20]}  Rxh7 {[%clk 0:00:09]} 39. Rf8 {[%clk 0:00:20]}  Kxe5 {[%clk 0:00:09]} 40. Ra8 {[%clk 0:00:20]}  Kd4 {[%clk 0:00:07]} 41. Rxa7 {[%clk 0:00:19]}  Rh8 {[%clk 0:00:07]} 42. a4 {[%clk 0:00:20]}  Kc4 {[%clk 0:00:06]} 43. b5 {[%clk 0:00:20]}  axb5 {[%clk 0:00:07]} 44. axb5 {[%clk 0:00:21]}  Kxb5 {[%clk 0:00:07]} 45. Ra1 {[%clk 0:00:22]}  Kxc5 {[%clk 0:00:07]} 46. Rc1+ {[%clk 0:00:22]}  Kd6 {[%clk 0:00:08]} 47. Rd1+ {[%clk 0:00:22]}  Kc7 {[%clk 0:00:08]} 48. Re1 {[%clk 0:00:23]}  b5 {[%clk 0:00:09]} 49. Kg3 {[%clk 0:00:24]}  Kb6 {[%clk 0:00:09]} 50. Kf4 {[%clk 0:00:25]}  Rf8+ {[%clk 0:00:09]} 51. Kg3 {[%clk 0:00:25]}  b4 {[%clk 0:00:09]} 52. Kg4 {[%clk 0:00:26]}  Kb5 {[%clk 0:00:09]} 53. Rb1 {[%clk 0:00:26]}  Bd5 {[%clk 0:00:09]} 54. Re1 {[%clk 0:00:27]}  Bc4 {[%clk 0:00:09]} 55. Re5+ {[%clk 0:00:28]}  Ka4 {[%clk 0:00:10]} 56. Re4 {[%clk 0:00:29]}  Rc8 {[%clk 0:00:09]} 57. Re3 {[%clk 0:00:30]}  b3 {[%clk 0:00:10]} 58. Re7 {[%clk 0:00:30]}  b2 {[%clk 0:00:10]} 59. Ra7+ {[%clk 0:00:31]}  Kb3 {[%clk 0:00:10]} 60. Rb7+ {[%clk 0:00:32]}  Kc2 {[%clk 0:00:11]} 61. Kh5 {[%clk 0:00:32]}  b1=Q {[%clk 0:00:11]} 62. Rxb1 {[%clk 0:00:32]}  Kxb1 {[%clk 0:00:12]} 63. Kxh6 {[%clk 0:00:33]}  Rg8 {[%clk 0:00:12]} 64. Kh7 {[%clk 0:00:33]}  Rg1 {[%clk 0:00:13]} 65. Kh6 {[%clk 0:00:34]}  Kc2 {[%clk 0:00:14]} 66. Kh5 {[%clk 0:00:35]}  Kd3 {[%clk 0:00:14]} 67. Kh4 {[%clk 0:00:36]}  Ke4 {[%clk 0:00:15]} 68. Kh3 {[%clk 0:00:36]}  Kf3 {[%clk 0:00:15]} 69. Kh2 {[%clk 0:00:37]}  Rg8 {[%clk 0:00:15]} 70. Kh1 {[%clk 0:00:37]}  Kf2 {[%clk 0:00:15]} 71. Kh2 {[%clk 0:00:38]}  Rh8# {[%clk 0:00:15]} 0-1


[Site "https://www.chess.com"]

[Event "Titled Tuesday Blitz December 20 Late 2022"]
[White "Torres Dominguez, David"]
[Black "Martinez Reyes, Pedro Ramon"]
[WhiteFideId "2220857"]
[BlackFideId "3901807"]
[WhiteElo "2037"]
[BlackElo "2354"]
[Result "0-1"]
[Round "03"]
[TimeControl "180+1"]
[Date "2022.12.21"]
[WhiteClock "0:00:01"]
[BlackClock "0:01:00"]

1. e4 {[%clk 0:03:00]}  e6 {[%clk 0:02:53]} 2. d4 {[%clk 0:03:00]}  d5 {[%clk 0:02:54]} 3. exd5 {[%clk 0:03:01]}  exd5 {[%clk 0:02:54]} 4. Bd3 {[%clk 0:03:01]}  Nf6 {[%clk 0:02:54]} 5. h3 {[%clk 0:02:59]}  Nc6 {[%clk 0:02:52]} 6. Qf3 {[%clk 0:02:58]}  Nxd4 {[%clk 0:02:52]} 7. Qe3+ {[%clk 0:02:52]}  Qe7 {[%clk 0:02:51]} 8. Nc3 {[%clk 0:02:50]}  c6 {[%clk 0:02:46]} 9. Nge2 {[%clk 0:02:46]}  Nxe2 {[%clk 0:02:45]} 10. Nxe2 {[%clk 0:02:40]}  Qxe3 {[%clk 0:02:41]} 11. Bxe3 {[%clk 0:02:40]}  Bd6 {[%clk 0:02:40]} 12. O-O-O {[%clk 0:02:38]}  O-O {[%clk 0:02:32]} 13. Nd4 {[%clk 0:02:36]}  Re8 {[%clk 0:02:29]} 14. Nb3 {[%clk 0:02:12]}  a5 {[%clk 0:02:19]} 15. a4 {[%clk 0:02:06]}  Bd7 {[%clk 0:02:03]} 16. Bb6 {[%clk 0:02:03]}  Ne4 {[%clk 0:01:56]} 17. Rhf1 {[%clk 0:01:40]}  Bf5 {[%clk 0:01:34]} 18. Nxa5 {[%clk 0:01:19]}  Bf4+ {[%clk 0:01:29]} 19. Kb1 {[%clk 0:01:11]}  Nd2+ {[%clk 0:01:29]} 20. Rxd2 {[%clk 0:01:10]}  Bxd2 {[%clk 0:01:29]} 21. Bxf5 {[%clk 0:01:06]}  Bxa5 {[%clk 0:01:28]} 22. Bd4 {[%clk 0:00:59]}  Re1+ {[%clk 0:01:21]} 23. Rxe1 {[%clk 0:00:58]}  Bxe1 {[%clk 0:01:22]} 24. b3 {[%clk 0:00:58]}  Bb4 {[%clk 0:01:19]} 25. c3 {[%clk 0:00:55]}  Bf8 {[%clk 0:01:19]} 26. Kc2 {[%clk 0:00:53]}  g6 {[%clk 0:01:19]} 27. Bg4 {[%clk 0:00:49]}  Bg7 {[%clk 0:01:19]} 28. Bb6 {[%clk 0:00:41]}  h5 {[%clk 0:01:18]} 29. Bf3 {[%clk 0:00:40]}  Re8 {[%clk 0:01:19]} 30. a5 {[%clk 0:00:40]}  Bf6 {[%clk 0:01:16]} 31. b4 {[%clk 0:00:38]}  Bd8 {[%clk 0:01:16]} 32. Bc5 {[%clk 0:00:36]}  Be7 {[%clk 0:01:15]} 33. Bd4 {[%clk 0:00:36]}  Bd6 {[%clk 0:01:13]} 34. Kd3 {[%clk 0:00:33]}  Kf8 {[%clk 0:01:12]} 35. Be2 {[%clk 0:00:29]}  Ke7 {[%clk 0:01:12]} 36. f3 {[%clk 0:00:29]}  Kd7 {[%clk 0:01:12]} 37. Be3 {[%clk 0:00:25]}  Be5 {[%clk 0:01:10]} 38. Bd2 {[%clk 0:00:24]}  Bg3 {[%clk 0:01:08]} 39. Bd1 {[%clk 0:00:22]}  Bf2 {[%clk 0:01:08]} 40. Bb3 {[%clk 0:00:18]}  Be1 {[%clk 0:01:08]} 41. b5 {[%clk 0:00:17]}  Bxd2 {[%clk 0:01:06]} 42. Kxd2 {[%clk 0:00:15]}  Ra8 {[%clk 0:01:03]} 43. a6 {[%clk 0:00:14]}  bxa6 {[%clk 0:01:03]} 44. bxc6+ {[%clk 0:00:14]}  Kxc6 {[%clk 0:01:04]} 45. Kd3 {[%clk 0:00:13]}  Kc5 {[%clk 0:01:05]} 46. Ba4 {[%clk 0:00:13]}  a5 {[%clk 0:01:05]} 47. g4 {[%clk 0:00:11]}  h4 {[%clk 0:01:05]} 48. g5 {[%clk 0:00:10]}  Rb8 {[%clk 0:01:02]} 49. Bd7 {[%clk 0:00:06]}  Kd6 {[%clk 0:00:59]} 50. Ba4 {[%clk 0:00:05]}  Ke5 {[%clk 0:01:00]} 51. Bd7 {[%clk 0:00:04]}  Rb7 {[%clk 0:01:00]} 52. Bc6 {[%clk 0:00:01]}  Rc7 {[%clk 0:01:01]} 53. Be8 {[%clk 0:00:01]}  Re7 {[%clk 0:01:00]} 0-1


[Site "https://www.chess.com"]

[Event "Titled Tuesday Blitz December 20 Late 2022"]
[White "Tymrakiewicz, Rafal"]
[Black "Gorodetzky, David"]
[WhiteFideId "1108832"]
[BlackFideId "2813416"]
[WhiteElo "2139"]
[BlackElo "2484"]
[Result "0-1"]
[Round "03"]
[TimeControl "180+1"]
[Date "2022.12.21"]
[WhiteClock "0:00:01"]
[BlackClock "0:01:20"]

1. d4 {[%clk 0:02:52]}  Nf6 {[%clk 0:02:59]} 2. Bg5 {[%clk 0:02:52]}  c5 {[%clk 0:02:59]} 3. d5 {[%clk 0:02:51]}  e6 {[%clk 0:02:54]} 4. Nc3 {[%clk 0:02:47]}  exd5 {[%clk 0:02:49]} 5. Nxd5 {[%clk 0:02:44]}  Be7 {[%clk 0:02:50]} 6. Nxe7 {[%clk 0:02:40]}  Qxe7 {[%clk 0:02:51]} 7. Nf3 {[%clk 0:02:35]}  O-O {[%clk 0:02:51]} 8. e3 {[%clk 0:02:34]}  Nc6 {[%clk 0:02:45]} 9. c3 {[%clk 0:02:30]}  d6 {[%clk 0:02:42]} 10. Be2 {[%clk 0:02:30]}  Bf5 {[%clk 0:02:41]} 11. O-O {[%clk 0:02:29]}  h6 {[%clk 0:02:41]} 12. Bh4 {[%clk 0:02:29]}  Rfd8 {[%clk 0:02:39]} 13. Qa4 {[%clk 0:02:17]}  g5 {[%clk 0:02:31]} 14. Bg3 {[%clk 0:02:16]}  Ne4 {[%clk 0:02:31]} 15. Rad1 {[%clk 0:02:11]}  a6 {[%clk 0:02:31]} 16. Qb3 {[%clk 0:01:59]}  Be6 {[%clk 0:02:22]} 17. Qc2 {[%clk 0:01:30]}  Nxg3 {[%clk 0:02:13]} 18. hxg3 {[%clk 0:01:29]}  Kg7 {[%clk 0:02:12]} 19. e4 {[%clk 0:01:18]}  Ne5 {[%clk 0:02:07]} 20. Rd2 {[%clk 0:01:11]}  Nc4 {[%clk 0:01:55]} 21. Bxc4 {[%clk 0:01:11]}  Bxc4 {[%clk 0:01:56]} 22. Rfd1 {[%clk 0:01:11]}  f6 {[%clk 0:01:56]} 23. b3 {[%clk 0:01:08]}  Bf7 {[%clk 0:01:56]} 24. c4 {[%clk 0:01:08]}  Bg6 {[%clk 0:01:56]} 25. Re2 {[%clk 0:01:03]}  Rd7 {[%clk 0:01:54]} 26. Nd2 {[%clk 0:01:00]}  Re8 {[%clk 0:01:55]} 27. g4 {[%clk 0:00:55]}  d5 {[%clk 0:01:48]} 28. cxd5 {[%clk 0:00:48]}  Rxd5 {[%clk 0:01:48]} 29. Rde1 {[%clk 0:00:49]}  Rd4 {[%clk 0:01:44]} 30. f3 {[%clk 0:00:43]}  b5 {[%clk 0:01:33]} 31. Nf1 {[%clk 0:00:43]}  c4 {[%clk 0:01:33]} 32. Ne3 {[%clk 0:00:39]}  Qc5 {[%clk 0:01:33]} 33. Kh1 {[%clk 0:00:33]}  c3 {[%clk 0:01:32]} 34. a3 {[%clk 0:00:14]}  a5 {[%clk 0:01:32]} 35. Nd5 {[%clk 0:00:12]}  Rxd5 {[%clk 0:01:31]} 36. exd5 {[%clk 0:00:11]}  Bxc2 {[%clk 0:01:31]} 37. Rxe8 {[%clk 0:00:09]}  Bg6 {[%clk 0:01:26]} 38. R8e7+ {[%clk 0:00:06]}  Bf7 {[%clk 0:01:26]} 39. Rb7 {[%clk 0:00:03]}  c2 {[%clk 0:01:26]} 40. Ree7 {[%clk 0:00:03]}  c1=Q+ {[%clk 0:01:26]} 41. Kh2 {[%clk 0:00:03]}  Q1g1+ {[%clk 0:01:19]} 42. Kh3 {[%clk 0:00:01]}  Qh1+ {[%clk 0:01:19]} 43. Kg3 {[%clk 0:00:01]}  Qh4# {[%clk 0:01:20]} 0-1


[Site "https://www.chess.com"]

[Event "Titled Tuesday Blitz December 20 Late 2022"]
[White "Urbina Perez, Juan Antonio"]
[Black "Thiel, Thomas"]
[WhiteFideId "2217368"]
[BlackFideId "4615964"]
[WhiteElo "2197"]
[BlackElo "2237"]
[Result "1-0"]
[Round "03"]
[TimeControl "180+1"]
[Date "2022.12.21"]
[WhiteClock "0:00:10"]
[BlackClock "0:00:01"]

1. d4 {[%clk 0:03:00]}  Nf6 {[%clk 0:02:58]} 2. Nf3 {[%clk 0:02:59]}  g6 {[%clk 0:02:58]} 3. Nbd2 {[%clk 0:02:59]}  Bg7 {[%clk 0:02:57]} 4. e4 {[%clk 0:02:59]}  d5 {[%clk 0:02:55]} 5. e5 {[%clk 0:02:58]}  Ne4 {[%clk 0:02:54]} 6. Bd3 {[%clk 0:02:58]}  Nxd2 {[%clk 0:02:53]} 7. Bxd2 {[%clk 0:02:59]}  O-O {[%clk 0:02:50]} 8. Qc1 {[%clk 0:02:59]}  c5 {[%clk 0:02:43]} 9. c3 {[%clk 0:02:57]}  cxd4 {[%clk 0:02:41]} 10. cxd4 {[%clk 0:02:58]}  Nc6 {[%clk 0:02:39]} 11. h3 {[%clk 0:02:55]}  Re8 {[%clk 0:02:30]} 12. O-O {[%clk 0:02:55]}  Bd7 {[%clk 0:02:27]} 13. Bh6 {[%clk 0:02:54]}  Bh8 {[%clk 0:02:24]} 14. Qf4 {[%clk 0:02:51]}  Rc8 {[%clk 0:02:17]} 15. h4 {[%clk 0:02:46]}  Be6 {[%clk 0:02:16]} 16. Ng5 {[%clk 0:02:45]}  Qd7 {[%clk 0:02:16]} 17. h5 {[%clk 0:02:44]}  Nb4 {[%clk 0:01:54]} 18. hxg6 {[%clk 0:02:39]}  fxg6 {[%clk 0:01:53]} 19. Bb1 {[%clk 0:02:23]}  Nc2 {[%clk 0:01:51]} 20. Qg3 {[%clk 0:01:58]}  Bf5 {[%clk 0:01:48]} 21. Bxc2 {[%clk 0:01:35]}  Rxc2 {[%clk 0:01:46]} 22. Rac1 {[%clk 0:01:35]}  Rec8 {[%clk 0:01:44]} 23. Rxc2 {[%clk 0:01:32]}  Rxc2 {[%clk 0:01:43]} 24. Qb3 {[%clk 0:01:29]}  Rc4 {[%clk 0:01:21]} 25. Qe3 {[%clk 0:01:24]}  e6 {[%clk 0:01:18]} 26. f3 {[%clk 0:01:08]}  Bg7 {[%clk 0:00:56]} 27. Bxg7 {[%clk 0:01:01]}  Kxg7 {[%clk 0:00:57]} 28. g4 {[%clk 0:01:01]}  Bc2 {[%clk 0:00:57]} 29. Qf4 {[%clk 0:00:54]}  Qe7 {[%clk 0:00:50]} 30. Rf2 {[%clk 0:00:50]}  Bb1 {[%clk 0:00:48]} 31. Rh2 {[%clk 0:00:44]}  h6 {[%clk 0:00:31]} 32. Nf7 {[%clk 0:00:42]}  g5 {[%clk 0:00:25]} 33. Qe3 {[%clk 0:00:12]}  Qxf7 {[%clk 0:00:23]} 34. b3 {[%clk 0:00:12]}  Rc2 {[%clk 0:00:21]} 35. Rh5 {[%clk 0:00:10]}  Rxa2 {[%clk 0:00:18]} 36. Rxg5+ {[%clk 0:00:10]}  hxg5 {[%clk 0:00:15]} 37. Qxg5+ {[%clk 0:00:11]}  Bg6 {[%clk 0:00:11]} 38. f4 {[%clk 0:00:11]}  Ra1+ {[%clk 0:00:09]} 39. Kg2 {[%clk 0:00:11]}  Qc7 {[%clk 0:00:08]} 40. Qf6+ {[%clk 0:00:08]}  Kh7 {[%clk 0:00:06]} 41. Qh4+ {[%clk 0:00:09]}  Kg8 {[%clk 0:00:03]} 42. Qf6 {[%clk 0:00:09]}  Qc2+ {[%clk 0:00:02]} 43. Kg3 {[%clk 0:00:09]}  Qxb3+ {[%clk 0:00:02]} 44. Kh4 {[%clk 0:00:10]}  Rh1+ {[%clk 0:00:01]} 45. Kg5 {[%clk 0:00:10]} 1-0


[Site "https://www.chess.com"]

[Event "Titled Tuesday Blitz December 20 Late 2022"]
[White "Veiga, Jose Francisco R P Neves"]
[Black "Belenkaya, Dina"]
[WhiteFideId "1930087"]
[BlackFideId "24142654"]
[WhiteElo "2320"]
[BlackElo "2209"]
[Result "1-0"]
[Round "03"]
[TimeControl "180+1"]
[Date "2022.12.21"]
[WhiteClock "0:00:06"]
[BlackClock "0:00:02"]

1. e4 {[%clk 0:02:58]}  d5 {[%clk 0:02:55]} 2. exd5 {[%clk 0:02:58]}  Qxd5 {[%clk 0:02:51]} 3. Nc3 {[%clk 0:02:58]}  Qe5+ {[%clk 0:02:37]} 4. Be2 {[%clk 0:02:48]}  c6 {[%clk 0:02:35]} 5. Nf3 {[%clk 0:02:48]}  Qc7 {[%clk 0:02:36]} 6. d4 {[%clk 0:02:47]}  Nf6 {[%clk 0:02:37]} 7. O-O {[%clk 0:02:46]}  Bf5 {[%clk 0:02:37]} 8. Ne5 {[%clk 0:02:40]}  Nbd7 {[%clk 0:02:36]} 9. Bf4 {[%clk 0:02:40]}  Nxe5 {[%clk 0:02:18]} 10. Bxe5 {[%clk 0:02:36]}  Qb6 {[%clk 0:02:17]} 11. Na4 {[%clk 0:02:32]}  Qa5 {[%clk 0:02:13]} 12. c4 {[%clk 0:02:30]}  e6 {[%clk 0:02:06]} 13. Qb3 {[%clk 0:01:23]}  O-O-O {[%clk 0:01:57]} 14. Nc3 {[%clk 0:01:08]}  Bd6 {[%clk 0:01:16]} 15. Bxd6 {[%clk 0:01:06]}  Rxd6 {[%clk 0:01:16]} 16. Rad1 {[%clk 0:01:06]}  Rhd8 {[%clk 0:01:16]} 17. d5 {[%clk 0:00:46]}  exd5 {[%clk 0:01:10]} 18. cxd5 {[%clk 0:00:41]}  Nxd5 {[%clk 0:01:07]} 19. Nxd5 {[%clk 0:00:30]}  Rxd5 {[%clk 0:01:08]} 20. Rc1 {[%clk 0:00:30]}  Be6 {[%clk 0:00:38]} 21. Bc4 {[%clk 0:00:25]}  Re5 {[%clk 0:00:31]} 22. Bxe6+ {[%clk 0:00:23]}  Rxe6 {[%clk 0:00:31]} 23. h3 {[%clk 0:00:19]}  Qd5 {[%clk 0:00:29]} 24. Qg3 {[%clk 0:00:17]}  Rg6 {[%clk 0:00:27]} 25. Qh2 {[%clk 0:00:14]}  Qxa2 {[%clk 0:00:17]} 26. Rfe1 {[%clk 0:00:14]}  Re6 {[%clk 0:00:10]} 27. Rf1 {[%clk 0:00:11]}  Qxb2 {[%clk 0:00:09]} 28. Rb1 {[%clk 0:00:11]}  Qe5 {[%clk 0:00:08]} 29. g3 {[%clk 0:00:08]}  Qe4 {[%clk 0:00:09]} 30. Rfe1 {[%clk 0:00:07]}  Qxe1+ {[%clk 0:00:09]} 31. Rxe1 {[%clk 0:00:08]}  Rxe1+ {[%clk 0:00:09]} 32. Kg2 {[%clk 0:00:09]}  Rdd1 {[%clk 0:00:08]} 33. g4 {[%clk 0:00:08]}  a5 {[%clk 0:00:05]} 34. Qf4 {[%clk 0:00:08]}  b5 {[%clk 0:00:04]} 35. Qf5+ {[%clk 0:00:08]}  Kc7 {[%clk 0:00:04]} 36. Qxf7+ {[%clk 0:00:08]}  Kb6 {[%clk 0:00:05]} 37. Qxg7 {[%clk 0:00:08]}  Rg1+ {[%clk 0:00:06]} 38. Kf3 {[%clk 0:00:08]}  a4 {[%clk 0:00:07]} 39. Qf8 {[%clk 0:00:06]}  Rge1 {[%clk 0:00:07]} 40. Qb8+ {[%clk 0:00:05]}  Kc5 {[%clk 0:00:07]} 41. Qa7+ {[%clk 0:00:05]}  Kc4 {[%clk 0:00:07]} 42. Qf7+ {[%clk 0:00:05]}  Kb4 {[%clk 0:00:07]} 43. Qxh7 {[%clk 0:00:05]}  Rd4 {[%clk 0:00:05]} 44. Qc2 {[%clk 0:00:03]}  Rc4 {[%clk 0:00:05]} 45. Qb2+ {[%clk 0:00:03]}  Kc5 {[%clk 0:00:05]} 46. Qa3+ {[%clk 0:00:03]}  Kb6 {[%clk 0:00:05]} 47. Qf8 {[%clk 0:00:02]}  Rec1 {[%clk 0:00:05]} 48. Qb8+ {[%clk 0:00:02]}  Kc5 {[%clk 0:00:06]} 49. g5 {[%clk 0:00:03]}  R1c3+ {[%clk 0:00:04]} 50. Kg2 {[%clk 0:00:03]}  a3 {[%clk 0:00:05]} 51. g6 {[%clk 0:00:03]}  a2 {[%clk 0:00:03]} 52. Qa7+ {[%clk 0:00:03]}  Kb4 {[%clk 0:00:02]} 53. Qxa2 {[%clk 0:00:04]}  Ra3 {[%clk 0:00:02]} 54. Qb2+ {[%clk 0:00:05]}  Rb3 {[%clk 0:00:02]} 55. Qg7 {[%clk 0:00:05]}  Rc2 {[%clk 0:00:02]} 56. Qf8+ {[%clk 0:00:05]}  c5 {[%clk 0:00:01]} 57. g7 {[%clk 0:00:06]}  Rbb2 {[%clk 0:00:02]} 58. g8=Q {[%clk 0:00:06]} 1-0


[Site "https://www.chess.com"]